bitfinex-derivatives/quotes_ETHF0:USTF0_20250607
["timestamp","ask_amount","ask_price","bid_price","bid_amount"]
[1749262956547,0.80814,2472.9,2472.8,0.00606183]
[1749262956847,2.22952795,2472.9,2472.8,0.00606183]
[1749262965147,0.80827,2472.5,2472.4,7.9728]
[1749262965341,2.22965795,2472.5,2472.4,7.9728]
[1749262965946,2.22965795,2472.5,2472.4,9.2948]
[1749262967244,2.22965795,2472.5,2472.4,6.087]
[1749262967647,1.42138795,2472.5,2472.4,6.8953]
[1749262967851,1.42138795,2472.5,2472.4,6.087]
[1749262968149,2.22965795,2472.5,2472.4,6.087]
[1749262968350,1.42138795,2472.5,2472.4,6.087]
[1749262969753,2.22965795,2472.5,2472.4,6.087]
[1749262971255,2.22873551,2472.5,2472.4,6.087]
[1749262972051,1.42046551,2472.5,2472.4,6.8953]
[1749262972354,2.22873551,2472.5,2472.4,6.087]
[1749262972551,1.42046551,2472.5,2472.4,6.087]
[1749262972854,3.2078,2473.3,2472.4,11.087]
[1749262973157,0.80816,2472.9,2472.7,4.01598]
[1749262973358,0.80816,2472.9,2472.8,2.5785]
[1749262973553,1.42043226,2473.3,2472.8,2.5785]
[1749262973756,0.80813,2473.0,2472.8,2.10935]
[1749262974053,1.42043226,2472.9,2472.8,2.10935]
[1749262974554,2.22857226,2472.9,2472.8,1.3012]
[1749262974756,1.42043226,2472.9,2472.8,2.10937]
[1749262975253,1.42043226,2472.9,2472.8,1.3012]
[1749262975454,1.42043226,2472.9,2472.8,2.10937]
[1749262975951,1.42043226,2472.9,2472.8,1.3012]
[1749262975952,2.22857226,2472.9,2472.8,1.3012]
[1749262976454,1.42043226,2472.9,2472.8,2.10937]
[1749262976657,2.22857226,2472.9,2472.8,1.3012]
[1749262977053,1.42043226,2472.9,2472.8,2.10937]
[1749262977254,1.42043226,2472.9,2472.8,1.3012]
[1749262977556,2.22857226,2472.9,2472.8,1.3012]
[1749262977756,1.42043226,2472.9,2472.8,2.10937]
[1749262977956,1.42043226,2472.9,2472.8,1.3012]
[1749262978153,2.22857226,2472.9,2472.8,1.3012]
[1749262978659,1.42043226,2472.9,2472.8,2.10937]
[1749262978859,2.22857226,2472.9,2472.8,1.3012]
[1749262979358,1.42043226,2472.9,2472.8,2.10937]
[1749262979549,2.22857226,2472.9,2472.8,1.3012]
[1749262979953,1.42043226,2472.9,2472.8,2.10937]
[1749262980155,2.22857226,2472.9,2472.8,1.3012]
[1749262980455,2.22857226,2472.9,2472.8,2.10937]
[1749262980456,1.42043226,2472.9,2472.8,2.10937]
[1749262980960,1.42369876,2472.9,2472.8,1.3012]
[1749262981152,1.42369876,2472.9,2472.8,2.10937]
[1749262982051,1.42369876,2472.9,2472.8,7.10937]
[1749262982260,0.80798,2473.4,2473.1,0.80807]
[1749262982461,0.80798,2473.4,2473.1,8.77287]
[1749262983057,0.6569,2473.6,2473.1,8.77287]
[1749262983255,0.80799,2473.4,2473.1,8.77287]
[1749262984163,0.6569,2473.6,2473.1,8.77287]
[1749262984561,0.80799,2473.4,2473.1,8.77287]
[1749262984763,0.80797,2473.5,2473.1,8.77287]
[1749262985061,0.80798,2473.4,2473.1,8.77287]
[1749262985259,0.80795,2473.5,2473.1,8.77287]
[1749262985561,1.46481,2473.6,2473.1,8.77287]
[1749262986061,0.80792,2473.6,2473.1,8.77287]
[1749262986653,0.80794,2473.5,2473.1,8.77287]
[1749262987062,1.45759,2473.7,2473.1,8.77287]
[1749262987262,0.6497,2473.7,2473.1,8.77287]
[1749262987464,0.80786,2473.8,2473.6,0.80789]
[1749262987764,1.45647,2474.1,2473.9,0.8078]
[1749262987966,0.6487,2474.1,2473.7,6.6974]
[1749262988158,0.80779,2474.0,2473.8,2.16483]
[1749262988659,0.65476183,2474.1,2473.8,1.357]
[1749262989060,0.80778,2474.0,2473.8,2.16483]
[1749262989264,0.65476183,2474.1,2473.8,2.16482]
[1749262989465,0.65476183,2474.1,2473.8,1.357]
[1749262989657,0.8078,2474.0,2473.8,1.357]
[1749262990159,0.80781,2473.9,2473.8,1.357]
[1749262991058,0.80781,2473.9,2473.7,5.41816183]
[1749262991363,0.80778,2474.0,2473.7,6.22603183]
[1749262991563,0.80782,2473.9,2473.7,6.22603183]
[1749262991861,0.80778,2474.0,2473.7,6.22603183]
[1749262992057,0.06951834,2473.8,2473.7,6.22603183]
[1749262992957,0.06951834,2473.8,2473.7,5.41816183]
[1749262993163,0.80783,2473.9,2473.7,5.41816183]
[1749262993665,0.80783,2473.9,2473.7,6.22603183]
[1749262995566,0.80783,2473.9,2473.7,5.41816183]
[1749262997070,0.80783,2473.9,2473.7,6.22603183]
[1749262997968,0.8078,2474.0,2473.8,0.80783]
[1749262998469,1.46252183,2474.1,2473.8,0.80783]
[1749262998664,2.21957177,2474.0,2473.8,0.80783]
[1749262998865,0.80779,2474.0,2473.8,0.80783]
[1749262999068,0.06951834,2473.9,2473.8,0.80783]
[1749262999667,0.87734834,2473.9,2473.7,7.58723183]
[1749262999869,0.06951834,2473.9,2473.7,7.58722183]
[1749263000170,0.65476183,2474.1,2473.7,6.77936183]
[1749263000360,2.22019286,2474.0,2473.8,0.80781]
[1749263000565,0.80778,2474.0,2473.8,0.80781]
[1749263001069,0.80778,2474.0,2473.8,0.80783]
[1749263001265,0.80778,2474.0,2473.7,6.77936183]
[1749263001266,0.80784,2473.8,2473.7,0.00606183]
[1749263001466,0.80784,2473.8,2473.7,5.56893183]
[1749263001666,0.80783,2473.9,2473.7,4.76106183]
[1749263001971,0.80784,2473.8,2473.7,5.56892183]
[1749263002169,0.80784,2473.8,2473.7,4.76106183]
[1749263003066,0.80784,2473.8,2473.7,0.00606183]
[1749263003474,0.808,2473.3,2473.2,3.2078]
[1749263003672,0.808,2473.3,2473.2,7.9628]
[1749263004271,0.80799,2473.4,2473.2,8.77083]
[1749263004477,2.08788,2473.7,2473.4,0.80795]
[1749263004669,1.41425586,2473.6,2473.5,8.77074]
[1749263004972,1.28,2473.7,2473.6,0.80791]
[1749263005273,2.69414606,2473.7,2473.6,0.80791]
[1749263005664,2.05964606,2473.7,2473.6,0.80791]
[1749263005969,0.00606183,2474.1,2473.6,5.0]
[1749263006169,0.00606183,2474.1,2474.0,4.01558]
[1749263006463,1.42064511,2474.1,2474.0,8.77058]
[1749263009778,1.42064511,2474.1,2474.0,7.9628]
[1749263010179,2.22838511,2474.1,2474.0,7.9628]
[1749263010371,1.42064511,2474.1,2474.0,7.9628]
[1749263011184,1.42064511,2474.1,2474.0,8.77058]
[1749263014280,1.49016345,2474.1,2474.0,8.77058]
[1749263015369,1.42064511,2474.1,2474.0,8.77058]
[1749263016380,0.6886,2474.5,2474.4,0.80765]
[1749263016575,0.6886,2474.5,2474.4,5.56565]
[1749263017181,0.6886,2474.5,2474.4,4.758]
[1749263017478,0.6886,2474.5,2474.4,5.56565]
[1749263018181,1.49621,2474.5,2474.4,4.758]
[1749263018382,0.6886,2474.5,2474.4,5.56565]
[1749263018579,0.6886,2474.5,2474.4,4.758]
[1749263018778,0.6886,2474.5,2474.4,5.56565]
[1749263019576,0.6886,2474.5,2474.4,4.758]
[1749263020176,0.6886,2474.5,2474.4,5.56565]
[1749263020482,0.6886,2474.5,2474.4,4.758]
[1749263021176,1.49621,2474.5,2474.4,4.758]
[1749263021584,0.6886,2474.5,2474.4,5.56565]
[1749263021881,1.49621,2474.5,2474.4,4.758]
[1749263022080,0.6886,2474.5,2474.4,4.758]
[1749263022683,1.49621,2474.5,2474.4,4.758]
[1749263022887,6.49621,2474.5,2474.4,4.758]
[1749263023081,0.80775,2474.1,2474.0,4.758]
[1749263023285,0.80775,2474.1,2473.9,3.2078]
[1749263023286,0.80778,2474.0,2473.9,3.2078]
[1749263023488,3.46498,2474.0,2473.9,3.2078]
[1749263024286,0.80781,2473.9,2473.8,4.758]
[1749263024483,2.10021,2473.9,2473.8,4.758]
[1749263027785,2.1118,2474.0,2473.8,4.758]
[1749263027979,0.80781,2473.9,2473.8,4.758]
[1749263028383,2.21713038,2473.9,2473.8,4.758]
[1749263028583,3.50093038,2473.9,2473.8,4.758]
[1749263029688,0.80788,2473.7,2473.5,3.2078]
[1749263029891,1.40932038,2473.6,2473.5,3.2078]
[1749263030194,2.09742038,2473.6,2473.5,8.77374]
[1749263034791,1.40932038,2473.6,2473.5,8.77374]
[1749263037497,1.40932038,2473.6,2473.5,5.56594]
[1749263039703,1.46683,2473.9,2473.7,0.80788]
[1749263039898,1.40821422,2473.8,2473.7,0.80788]
[1749263040500,1.40821422,2473.8,2473.6,0.80788]
[1749263040693,1.40815582,2473.7,2473.6,0.80789]
[1749263042105,1.40809043,2473.7,2473.6,0.80789]
[1749263043104,1.40807715,2473.7,2473.6,0.80789]
[1749263044104,2.21594715,2473.7,2473.6,0.80789]
[1749263044303,1.40807715,2473.7,2473.6,0.80789]
[1749263045806,1.40807715,2473.7,2473.6,2.10829]
[1749263048507,1.40848841,2473.7,2473.6,2.10831]
[1749263048708,1.40877232,2473.7,2473.6,1.3004]
[1749263048908,0.80778,2474.0,2473.9,0.80781]
[1749263049107,2.21656842,2474.0,2473.9,5.54181]
[1749263049310,1.40878842,2474.0,2473.9,5.54181]
[1749263049613,2.21656842,2474.0,2473.9,4.734]
[1749263050106,0.80784,2473.8,2473.7,3.2078]
[1749263050308,2.21662842,2473.8,2473.7,4.734]
[1749263050511,0.80794,2473.5,2473.4,4.734]
[1749263051202,2.21672842,2473.5,2473.4,4.734]
[1749263051404,4.21852842,2473.5,2473.4,4.734]
[1749263052101,0.80804,2473.2,2473.1,0.00404121]
[1749263052706,8.42890842,2473.2,2472.7,4.734]
[1749263052902,0.80823,2472.6,2472.2,4.01615]
[1749263053097,2.21705842,2472.5,2472.4,4.734]
[1749263053305,1.40878842,2472.5,2472.4,4.734]
[1749263053805,1.41114489,2472.5,2472.4,4.734]
[1749263055303,1.41114489,2472.5,2472.4,5.5423]
[1749263055504,0.80822,2472.7,2472.4,5.5423]
[1749263055705,1.40903137,2472.6,2472.4,5.5423]
[1749263055910,0.80822,2472.7,2472.4,5.5423]
[1749263056211,1.40902335,2472.6,2472.4,5.5423]
[1749263056410,0.80822,2472.7,2472.4,4.734]
[1749263056710,1.40720045,2472.6,2472.4,5.5423]
[1749263056911,0.80822,2472.7,2472.4,5.5423]
[1749263057211,1.40665459,2472.6,2472.4,5.5423]
[1749263057410,0.80822,2472.7,2472.4,5.5423]
[1749263057913,2.21431113,2472.6,2472.4,4.734]
[1749263058115,0.80824,2472.6,2472.4,4.734]
[1749263058411,0.80822,2472.7,2472.4,5.5423]
[1749263058914,0.645,2472.9,2472.5,3.2078]
[1749263059109,0.6638,2473.1,2472.9,0.80814]
[1749263059309,0.6638,2473.1,2473.0,5.5431]
[1749263059510,2.06917406,2473.1,2473.0,4.735]
[1749263059904,2.06917406,2473.1,2473.0,5.5431]
[1749263060917,2.06917406,2473.1,2473.0,4.735]
[1749263061114,2.87724406,2473.1,2473.0,4.735]
[1749263063313,2.87724406,2473.1,2472.9,4.735]
[1749263063314,0.8081,2473.0,2472.9,4.735]
[1749263063614,0.80819,2472.8,2472.6,0.80823]
[1749263063817,1.47426,2472.9,2472.7,4.735]
[1749263064915,1.47426,2472.9,2472.7,5.54319]
[1749263065116,1.47426,2472.9,2472.7,4.735]
[1749263065716,1.47427,2472.9,2472.7,4.735]
[1749263065915,0.80817,2472.8,2472.7,4.735]
[1749263066111,0.6661,2472.9,2472.5,3.2078]
[1749263066415,0.8082,2472.7,2472.6,4.735]
[1749263067618,2.21343138,2472.7,2472.6,4.735]
[1749263068013,0.80823,2472.6,2472.5,3.2078]
[1749263068210,0.80829,2472.5,2472.2,3.21386183]
[1749263068415,0.80826,2472.6,2472.2,3.21386183]
[1749263068611,1.9405,2472.9,2472.3,1.3956]
[1749263068920,0.80824,2472.6,2472.4,0.8083]
[1749263069122,1.9405,2472.9,2472.3,1.3956]
[1749263069311,1.9405,2472.9,2472.4,0.80829]
[1749263069513,0.80824,2472.6,2472.3,1.3956]
[1749263069713,1.40515489,2472.8,2472.4,0.80828]
[1749263069918,0.8082,2472.7,2472.4,0.80828]
[1749263070227,0.80823,2472.6,2472.5,4.735]
[1749263071219,2.21338452,2472.6,2472.5,4.735]
[1749263072221,0.80823,2472.6,2472.5,4.735]
[1749263072518,1.9405,2472.9,2472.5,4.735]
[1749263072721,0.80822,2472.7,2472.5,4.735]
[1749263072923,0.80819,2472.8,2472.5,5.54326]
[1749263073118,1.40525648,2472.7,2472.6,0.80822]
[1749263073422,0.80819,2472.8,2472.6,0.80823]
[1749263074019,0.6661,2472.9,2472.6,0.80823]
[1749263074020,1.47425,2472.9,2472.6,0.80823]
[1749263074220,0.6661,2472.9,2472.6,0.80823]
[1749263074418,0.80818,2472.8,2472.6,0.80823]
[1749263074619,0.6661,2472.9,2472.8,0.80817]
[1749263074820,0.80813,2473.0,2472.7,0.80818]
[1749263075021,0.80812,2473.0,2472.8,0.80814]
[1749263075219,0.80812,2473.0,2472.7,2.13918]
[1749263075422,0.80814,2472.9,2472.8,4.768]
[1749263076022,2.21284483,2472.9,2472.8,4.768]
[1749263076324,1.40470483,2472.9,2472.8,5.57617]
[1749263076522,1.40470483,2473.0,2472.8,7.9758]
[1749263076727,1.40470483,2473.0,2472.9,1.3196]
[1749263076924,1.40470483,2473.0,2472.9,2.12774]
[1749263077428,0.80802,2473.3,2473.1,0.80806]
[1749263077626,2.21408466,2473.2,2473.1,4.768]
[1749263077927,2.21408466,2473.2,2473.1,6.0876]
[1749263078128,1.40604466,2473.2,2473.1,6.0876]
[1749263078629,2.21408466,2473.2,2473.1,6.0876]
[1749263078927,1.40604466,2473.2,2473.1,6.89567]
[1749263079332,2.21408466,2473.2,2473.1,6.0876]
[1749263080128,1.40604466,2473.2,2473.1,6.0876]
[1749263080623,1.40604466,2473.2,2473.1,10.10347]
[1749263081020,1.40970734,2473.3,2473.1,10.10347]
[1749263081223,1.40970734,2473.3,2473.2,2.09204]
[1749263081630,2.21770734,2473.3,2473.2,1.284]
[1749263082529,0.80804,2473.2,2473.1,7.9758]
[1749263082828,2.21774734,2473.2,2473.1,7.9758]
[1749263083628,1.40970734,2473.2,2473.1,7.9758]
[1749263083829,2.21774734,2473.2,2473.1,7.9758]
[1749263084031,1.40970734,2473.2,2473.1,8.78387]
[1749263084539,1.40970734,2473.2,2473.1,10.08587]
[1749263086326,0.00606183,2473.4,2473.3,0.808]
[1749263086630,1.44391084,2473.4,2473.3,0.808]
[1749263086827,0.00606183,2473.4,2473.3,2.212]
[1749263089430,0.07558017,2473.4,2473.3,2.212]
[1749263089735,0.07558017,2473.4,2473.1,4.01584]
[1749263090035,2.73420333,2473.3,2473.1,3.2078]
[1749263090237,1.43700333,2473.2,2473.1,4.01586]
[1749263090432,0.6357,2473.3,2473.2,0.80804]
[1749263090633,0.00606183,2473.4,2473.3,0.808]
[1749263090927,1.44302152,2473.4,2473.3,5.575]
[1749263094738,0.00606183,2473.4,2473.3,5.575]
[1749263094929,0.00606183,2473.4,2473.3,6.9614]
[1749263095133,1.3955,2474.0,2473.8,0.80782]
[1749263095337,1.3955,2474.0,2473.9,3.2078]
[1749263095635,2.8329499,2474.0,2473.9,3.2078]
[1749263096232,3.6407299,2474.0,2473.9,3.2078]
[1749263096632,2.8329499,2474.0,2473.9,3.2078]
[1749263097438,1.4374499,2474.0,2473.9,4.01561]
[1749263099138,1.4374499,2474.0,2473.9,3.2078]
[1749263099741,2.2452299,2474.0,2473.9,3.2078]
[1749263099940,2.2452299,2474.0,2473.8,4.767]
[1749263100245,2.1391499,2473.9,2473.8,4.767]
[1749263100447,2.9469599,2473.9,2473.8,4.767]
[1749263100740,4.3040599,2473.9,2473.8,4.767]
[1749263101540,2.1391499,2473.9,2473.8,5.57484]
[1749263102143,2.9469599,2473.9,2473.8,4.767]
[1749263102741,2.1391499,2473.9,2473.8,5.57484]
[1749263103542,2.9469599,2473.9,2473.8,5.57484]
[1749263103947,2.1391499,2473.9,2473.8,5.57484]
[1749263104354,1.4374499,2473.9,2473.8,5.57484]
[1749263104644,0.65286183,2474.2,2474.1,0.80774]
[1749263104839,2.08930614,2474.2,2474.1,8.78154]
[1749263105340,2.89701614,2474.2,2474.1,7.9738]
[1749263105539,2.08930614,2474.2,2474.1,8.78154]
[1749263105747,2.08904402,2474.2,2474.1,8.78154]
[1749263107442,2.08904402,2474.2,2474.1,7.9738]
[1749263107645,2.08904402,2474.2,2474.1,8.78154]
[1749263108052,2.89675402,2474.2,2474.1,7.9738]
[1749263108247,2.08904402,2474.2,2474.1,8.78154]
[1749263108549,2.08904402,2474.2,2474.1,7.9738]
[1749263108750,2.08904402,2474.2,2474.1,8.78154]
[1749263109047,2.08904402,2474.2,2474.1,4.766]
[1749263109249,2.08904402,2474.2,2474.1,5.57374]
[1749263109447,2.08904402,2474.2,2474.1,8.78154]
[1749263111050,2.89675402,2474.2,2474.1,7.9738]
[1749263111250,2.08904402,2474.2,2474.1,5.57374]
[1749263111450,2.08904402,2474.2,2474.1,8.78154]
[1749263111953,2.08904402,2474.2,2474.1,5.57374]
[1749263112449,2.08904402,2474.2,2474.1,8.78154]
[1749263112753,2.15856236,2474.2,2474.1,8.78154]
[1749263113755,2.08904402,2474.2,2474.1,8.78154]
[1749263114254,2.89675402,2474.2,2474.1,7.9738]
[1749263115048,2.89675402,2474.2,2474.1,4.766]
[1749263115357,2.08904402,2474.2,2474.1,5.57374]
[1749263115554,2.08904402,2474.2,2474.1,8.78154]
[1749263116848,2.15856236,2474.2,2474.1,8.78154]
[1749263117858,2.08904402,2474.2,2474.1,8.78154]
[1749263118457,1.44224402,2474.2,2474.1,8.78154]
[1749263120959,1.83e-06,2474.2,2474.1,8.78154]
[1749263121155,1.83e-06,2474.2,2474.1,13.78154]
[1749263121357,1.83e-06,2474.2,2474.1,8.78154]
[1749263121857,1.83e-06,2474.2,2474.1,8.78454]
[1749263122859,0.06952017,2474.2,2474.1,8.78454]
[1749263126659,1.50886027,2474.2,2474.1,8.78454]
[1749263130464,0.06952017,2474.2,2474.1,8.78454]
[1749263131059,1.83e-06,2474.2,2474.1,8.78454]
[1749263131460,1.45890358,2474.2,2474.1,8.78454]
[1749263131958,1.83e-06,2474.2,2474.1,8.78454]
[1749263132360,1.45890358,2474.2,2474.1,8.78454]
[1749263132766,1.83e-06,2474.2,2474.1,8.78454]
[1749263133461,1.45890358,2474.2,2474.1,8.78454]
[1749263133669,1.83e-06,2474.2,2474.1,8.78454]
[1749263133963,1.45890358,2474.2,2474.1,8.78454]
[1749263134164,1.52842192,2474.2,2474.1,8.78454]
[1749263136067,1.52666723,2474.2,2474.1,8.78454]
[1749263139669,1.52666723,2474.2,2474.1,8.76554]
[1749263140366,1.52666723,2474.2,2474.1,3.2078]
[1749263140573,2.33437723,2474.2,2474.1,7.9578]
[1749263140966,3.68677723,2474.2,2474.1,7.9578]
[1749263141370,2.87906723,2474.2,2474.1,8.76554]
[1749263143678,3.68677723,2474.2,2474.1,4.01554]
[1749263143978,3.68677723,2474.2,2474.1,7.9578]
[1749263144780,2.87906723,2474.2,2474.1,7.9578]
[1749263145286,3.68677723,2474.2,2474.1,7.9578]
[1749263145487,2.87906723,2474.2,2474.1,8.76554]
[1749263147689,2.87906723,2474.2,2474.1,4.01554]
[1749263148178,2.87906723,2474.2,2474.1,8.76654]
[1749263148589,2.87906723,2474.2,2474.1,4.01554]
[1749263148790,2.87906723,2474.2,2474.1,8.76654]
[1749263149089,1.42192017,2474.2,2474.1,8.76654]
[1749263149290,2.87955302,2474.2,2474.1,8.76654]
[1749263150788,3.68726302,2474.2,2474.1,8.76654]
[1749263151091,2.87955302,2474.2,2474.1,8.76654]
[1749263151791,3.68726302,2474.2,2474.1,8.76654]
[1749263152490,2.87955302,2474.2,2474.1,4.01554]
[1749263152693,2.87955302,2474.2,2474.1,8.76654]
[1749263154296,2.81003468,2474.2,2474.1,8.76654]
[1749263154589,3.61774468,2474.2,2474.1,8.76654]
[1749263154788,3.61774468,2474.2,2474.1,7.9588]
[1749263155300,3.68726302,2474.2,2474.1,7.9588]
[1749263155495,2.87955302,2474.2,2474.1,8.76654]
[1749263157290,3.68726302,2474.2,2474.1,8.76654]
[1749263158195,3.68726302,2474.2,2474.1,7.9588]
[1749263158696,3.68726302,2474.2,2474.1,8.76654]
[1749263159090,2.87955302,2474.2,2474.1,7.9588]
[1749263159296,3.68726302,2474.2,2474.1,7.9588]
[1749263159795,3.68726302,2474.2,2474.1,5.55874]
[1749263160095,2.22963017,2474.2,2474.1,5.55874]
[1749263160393,3.67387289,2474.2,2474.1,4.751]
[1749263162598,2.86616289,2474.2,2474.1,5.55874]
[1749263162798,3.67387289,2474.2,2474.1,4.751]
[1749263163200,3.67387289,2474.2,2474.1,5.55874]
[1749263163497,3.67387289,2474.2,2474.1,4.751]
[1749263163696,2.32147289,2474.2,2474.1,4.751]
[1749263164200,1.51376289,2474.2,2474.1,5.55874]
[1749263165896,2.32147289,2474.2,2474.1,4.751]
[1749263166400,1.51376289,2474.2,2474.1,5.55874]
[1749263166800,2.32147289,2474.2,2474.1,5.55874]
[1749263167002,2.32147289,2474.2,2474.1,4.751]
[1749263168704,2.32147289,2474.2,2474.1,5.55874]
[1749263169099,2.34135508,2474.2,2474.1,5.55874]
[1749263169405,1.53364508,2474.2,2474.1,5.55874]
[1749263169606,2.34135508,2474.2,2474.1,5.55874]
[1749263169806,2.34135508,2474.2,2474.1,4.751]
[1749263170202,0.80781,2473.9,2473.8,3.2078]
[1749263170399,0.80781,2473.9,2473.8,4.01564]
[1749263170400,1.46412491,2473.9,2473.8,4.01564]
[1749263170604,1.46412491,2473.9,2473.8,5.30254]
[1749263171106,0.06952017,2474.2,2474.1,0.80774]
[1749263171303,0.06952017,2474.2,2474.1,8.74954]
[1749263171706,1.83e-06,2474.2,2474.1,8.74954]
[1749263171907,1.83e-06,2474.2,2474.1,9.42304]
[1749263173703,0.80771183,2474.2,2474.1,7.9418]
[1749263174011,0.80771183,2474.2,2474.1,4.734]
[1749263174209,0.80781,2473.9,2473.8,4.734]
[1749263175500,5.843,2474.1,2473.7,0.00606183]
[1749263175704,2.14484,2473.8,2473.7,0.00606183]
[1749263177805,0.80784,2473.8,2473.7,0.00606183]
[1749263183508,2.24169025,2473.8,2473.7,0.00606183]
[1749263185409,2.24132445,2473.8,2473.7,0.00606183]
[1749263192816,2.24132445,2473.8,2473.7,3.21386183]
[1749263193016,2.24132445,2473.8,2473.7,1.48213183]
[1749263193017,1.43348445,2473.8,2473.7,1.48213183]
[1749263193209,2.24132445,2473.8,2473.7,0.67426183]
[1749263193705,1.43348445,2473.8,2473.7,1.48213183]
[1749263194026,1.43348445,2473.8,2473.7,3.88206183]
[1749263194314,2.24132445,2473.8,2473.7,0.67426183]
[1749263194710,2.24132445,2473.8,2473.7,0.00606183]
[1749263194910,2.24132445,2473.8,2473.7,0.67426183]
[1749263195110,1.43348445,2473.8,2473.7,1.48213183]
[1749263195315,2.24132445,2473.8,2473.7,2.85123183]
[1749263195514,2.24132445,2473.8,2473.7,0.00606183]
[1749263195716,2.24168122,2473.8,2473.7,0.00606183]
[1749263196106,2.24169339,2473.8,2473.7,0.00606183]
[1749263196715,1.43385339,2473.8,2473.7,0.81393183]
[1749263197719,2.24169339,2473.8,2473.7,0.00606183]
[1749263198319,2.24169339,2473.8,2473.7,1.39656183]
[1749263198520,1.43385339,2473.8,2473.7,2.20443183]
[1749263199121,2.24169339,2473.8,2473.7,1.39656183]
[1749263199623,2.24169339,2473.8,2473.7,0.00606183]
[1749263200124,2.31121173,2473.8,2473.7,0.00606183]
[1749263201124,2.24169339,2473.8,2473.7,0.00606183]
[1749263202525,1.43385339,2473.8,2473.7,0.81393183]
[1749263203224,1.43385339,2473.8,2473.7,2.13833183]
[1749263204025,1.43385339,2473.8,2473.7,1.33046183]
[1749263204320,1.43385339,2473.8,2473.7,2.13833183]
[1749263205019,2.24169339,2473.8,2473.7,1.33046183]
[1749263205414,1.43385339,2473.8,2473.7,1.33046183]
[1749263205617,1.43385339,2473.8,2473.7,2.13833183]
[1749263210129,1.43385339,2473.8,2473.7,1.33046183]
[1749263210524,1.43385339,2473.8,2473.7,2.13833183]
[1749263212129,1.43385339,2473.8,2473.7,1.33046183]
[1749263212431,2.24169339,2473.8,2473.7,0.00606183]
[1749263213127,1.43385339,2473.8,2473.7,0.81393183]
[1749263213428,2.24169339,2473.8,2473.7,0.00606183]
[1749263216326,2.31121173,2473.8,2473.7,0.00606183]
[1749263216730,1.50337173,2473.8,2473.7,0.81393183]
[1749263217833,2.31121173,2473.8,2473.7,0.00606183]
[1749263219837,1.50337173,2473.8,2473.7,0.81393183]
[1749263220337,1.43385339,2473.8,2473.7,0.81393183]
[1749263221136,2.24169339,2473.8,2473.7,0.81393183]
[1749263221334,2.31121173,2473.8,2473.7,0.81393183]
[1749263222339,2.24169339,2473.8,2473.7,0.81393183]
[1749263223040,1.43385339,2473.8,2473.7,0.81393183]
[1749263223241,1.43385339,2473.8,2473.7,0.00606183]
[1749263223435,2.24169339,2473.8,2473.7,0.00606183]
[1749263224143,5.44949339,2473.8,2473.7,0.00606183]
[1749263224341,4.64165339,2473.8,2473.6,4.734]
[1749263224539,1.43745999,2473.7,2473.6,5.54191]
[1749263224738,1.43745999,2473.7,2473.6,6.91901]
[1749263227238,2.10597,2474.1,2473.6,6.1111]
[1749263227445,1.43701105,2474.0,2473.9,0.80781]
[1749263227743,1.43701105,2474.0,2473.9,5.54181]
[1749263229046,2.24479105,2474.0,2473.9,4.734]
[1749263230646,1.43701105,2474.0,2473.9,5.54181]
[1749263231851,2.24479105,2474.0,2473.9,4.734]
[1749263232447,1.43701105,2474.0,2473.9,5.54181]
[1749263236953,2.24479105,2474.0,2473.9,5.54181]
[1749263237647,1.43701105,2474.0,2473.9,5.54181]
[1749263238152,1.43724206,2474.0,2473.9,5.54181]
[1749263239655,1.5067604,2474.0,2473.9,6.19451]
[1749263239856,1.5067604,2474.0,2473.9,6.83041]
[1749263241654,1.5067604,2474.0,2473.9,11.83041]
[1749263241955,1.83e-06,2474.2,2474.1,0.80774]
[1749263242154,1.43602396,2474.2,2474.1,4.01554]
[1749263244657,1.5055423,2474.2,2474.1,4.01554]
[1749263245757,1.43602396,2474.2,2474.1,4.01554]
[1749263245955,1.83e-06,2474.2,2474.1,4.01554]
[1749263247057,1.83e-06,2474.2,2474.1,9.01554]
[1749263247763,1.83e-06,2474.2,2474.1,9.33862658]
[1749263253264,1.83e-06,2474.2,2474.1,4.33862658]
[1749263253561,1.83e-06,2474.2,2474.1,9.33862658]
[1749263254862,0.06952017,2474.2,2474.1,9.33862658]
[1749263256363,0.06952017,2474.2,2474.1,4.33862658]
[1749263260371,0.06952017,2474.2,2474.1,4.01554]
[1749263262278,0.06952017,2474.2,2474.1,4.33768587]
[1749263269986,0.06952017,2474.2,2474.1,1.12988587]
[1749263270188,0.06952017,2474.2,2474.1,4.33768587]
[1749263272088,1.3071,2474.7,2474.6,0.80758]
[1749263272289,2.74725301,2474.7,2474.6,8.74538]
[1749263278191,1.44015301,2474.7,2474.6,8.74538]
[1749263281890,1.44015301,2474.7,2474.6,5.53758]
[1749263282093,1.44015301,2474.7,2474.6,8.74538]
[1749263282492,2.71275301,2474.7,2474.6,8.74538]
[1749263285302,1.50967135,2474.7,2474.6,8.74538]
[1749263289301,0.06951834,2474.7,2474.6,8.74538]
[1749263289807,0.80727,2475.6,2474.9,2.0187]
[1749263290104,4.24885278,2475.5,2475.3,0.80734]
[1749263290301,2.79185278,2475.4,2475.3,5.53735]
[1749263291398,3.59917278,2475.4,2475.3,4.73]
[1749263291597,0.80738,2475.2,2475.1,0.00606183]
[1749263291800,2.24603278,2475.2,2475.1,4.73306183]
[1749263292004,7.24603278,2475.2,2475.1,4.73306183]
[1749263292206,7.93453278,2475.2,2475.1,4.73306183]
[1749263293106,8.63293278,2475.2,2475.1,4.73306183]
[1749263295899,2.82555278,2475.2,2475.1,5.54048183]
[1749263297002,4.17125278,2475.2,2475.1,5.54048183]
[1749263299810,2.89507112,2475.2,2475.1,5.54048183]
[1749263301410,2.89644029,2475.2,2475.1,5.54048183]
[1749263302413,2.19804029,2475.2,2475.1,5.54048183]
[1749263303713,2.12852195,2475.2,2475.1,5.54048183]
[1749263304013,1.44002195,2475.2,2475.1,8.74828183]
[1749263304312,1.44002195,2475.2,2475.1,10.68618183]
[1749263304608,1.50954029,2475.2,2475.1,10.68618183]
[1749263305609,1.44002195,2475.2,2475.1,10.68618183]
[1749263306208,0.6849,2475.5,2475.4,0.80732]